bitfinex-derivatives/quotes_BTCF0:USTF0_20250517
["timestamp","ask_amount","ask_price","bid_price","bid_amount"]
[1747512647328,1.53850013,103190.0,103180.0,0.0662]
[1747512647527,1.53850013,103190.0,103180.0,0.0969]
[1747512647528,1.08569797,103190.0,103180.0,0.0969]
[1747512647738,1.14119709,103190.0,103180.0,0.2906555]
[1747512648027,1.12631543,103190.0,103180.0,0.2906555]
[1747512648220,0.46691631,103190.0,103180.0,0.2906555]
[1747512648426,0.67515631,103190.0,103180.0,0.2906555]
[1747512648829,1.03595631,103190.0,103180.0,0.2906555]
[1747512649527,0.82771631,103190.0,103180.0,0.2906555]
[1747512649731,0.70537543,103190.0,103180.0,0.2906555]
[1747512649937,0.82771631,103190.0,103180.0,0.2906555]
[1747512652121,0.82771631,103190.0,103180.0,0.0969]
[1747512652325,0.86021631,103190.0,103180.0,0.0969]
[1747512652631,0.86565847,103190.0,103180.0,0.0969]
[1747512653125,0.86565847,103190.0,103180.0,0.2906555]
[1747512653324,0.86565847,103190.0,103180.0,0.0969]
[1747512653325,0.9297236,103190.0,103180.0,0.0969]
[1747512655228,0.9297236,103190.0,103180.0,0.2906555]
[1747512655536,0.92428144,103190.0,103180.0,0.2906555]
[1747512656137,0.73787543,103190.0,103180.0,0.2906555]
[1747512656332,0.92428144,103190.0,103180.0,0.2906555]
[1747512659841,0.92428144,103190.0,103180.0,0.0969]
[1747512660537,0.92428144,103190.0,103180.0,0.2906554]
[1747512660740,0.92428144,103190.0,103180.0,0.0969]
[1747512661329,0.92428144,103190.0,103180.0,0.2906555]
[1747512662035,0.92428144,103190.0,103180.0,0.0969]
[1747512662255,0.95458144,103190.0,103180.0,0.0969]
[1747512663037,0.95458144,103190.0,103180.0,0.2906555]
[1747512663741,0.59378144,103190.0,103180.0,0.2906555]
[1747512664039,0.95458144,103190.0,103180.0,0.2906555]
[1747512664540,0.95458144,103190.0,103180.0,0.0969]
[1747512664742,0.98478144,103190.0,103180.0,0.0969]
[1747512665943,1.19258144,103190.0,103180.0,0.0969]
[1747512666240,1.04174261,103190.0,103180.0,0.0969]
[1747512666440,1.04174261,103190.0,103180.0,0.0352]
[1747512666834,1.04718477,103190.0,103180.0,0.002]
[1747512667039,0.1937555,103180.0,103170.0,0.0636]
[1747512667231,1.23120752,103180.0,103170.0,0.0636]
[1747512667542,1.23120752,103180.0,103170.0,0.033]
[1747512668144,1.22480151,103180.0,103170.0,0.033]
[1747512668441,1.23457091,103180.0,103170.0,0.036]
[1747512669342,1.23457091,103180.0,103170.0,0.039]
[1747512669755,1.23457091,103180.0,103170.0,0.006]
[1747512670545,1.42097692,103180.0,103170.0,0.006]
[1747512670938,0.1937742,103170.0,103160.0,0.09962751]
[1747512671135,1.22808622,103170.0,103160.0,0.09962751]
[1747512671444,1.22808622,103170.0,103160.0,0.0627]
[1747512672137,1.22808622,103170.0,103150.0,0.03473883]
[1747512672138,0.193793,103160.0,103150.0,0.03473883]
[1747512672335,0.193793,103160.0,103150.0,0.09613883]
[1747512672336,1.04245901,103160.0,103150.0,0.09613883]
[1747512675347,1.10086298,103160.0,103150.0,0.09613883]
[1747512675552,1.25192437,103160.0,103150.0,0.09613883]
[1747512676238,1.25192437,103160.0,103150.0,0.28995063]
[1747512676436,1.00711439,103160.0,103150.0,0.28995063]
[1747512676640,1.12951938,103160.0,103150.0,0.28995063]
[1747512677647,1.09841938,103160.0,103150.0,0.28995063]
[1747512678044,0.88985938,103160.0,103150.0,0.28995063]
[1747512678241,0.73685439,103160.0,103150.0,0.41235562]
[1747512678441,0.37605439,103160.0,103150.0,0.77315562]
[1747512678643,0.37605439,103160.0,103150.0,0.28995063]
[1747512678948,0.49845938,103160.0,103150.0,0.28995063]
[1747512679449,0.37605439,103160.0,103150.0,0.28995063]
[1747512681340,0.56251232,103160.0,103150.0,0.28995063]
[1747512681944,0.56795448,103160.0,103150.0,0.28995063]
[1747512682149,0.68873496,103160.0,103150.0,0.28995063]
[1747512682945,0.6832928,103160.0,103150.0,0.28995063]
[1747512683249,1.0440928,103160.0,103150.0,0.28995063]
[1747512684046,1.04953496,103160.0,103150.0,0.28995063]
[1747512685949,0.86307703,103160.0,103150.0,0.28995063]
[1747512686145,0.85763487,103160.0,103150.0,0.28995063]
[1747512686447,1.0440928,103160.0,103150.0,0.28995063]
[1747512687351,0.6832928,103160.0,103150.0,0.28995063]
[1747512687539,0.49683487,103160.0,103150.0,0.65075063]
[1747512687745,0.49683487,103160.0,103150.0,0.28995063]
[1747512688642,0.34577348,103160.0,103150.0,0.28995063]
[1747512691047,0.12078048,103160.0,103150.0,0.83720856]
[1747512691254,0.12078048,103160.0,103150.0,1.53414856]
[1747512691455,0.31457358,103160.0,103150.0,1.53414856]
[1747512691654,0.12078048,103160.0,103150.0,1.53414856]
[1747512692847,0.12078048,103160.0,103150.0,1.57836692]
[1747512694350,0.12078048,103160.0,103150.0,1.39190899]
[1747512694543,0.31457348,103160.0,103150.0,0.97190899]
[1747512694751,0.226493,103160.0,103150.0,1.39178899]
[1747512694950,0.226493,103160.0,103150.0,1.39174899]
[1747512695150,0.19923516,103160.0,103150.0,1.39174899]
[1747512695552,0.19923516,103160.0,103150.0,1.4286765]
[1747512696148,0.193793,103160.0,103150.0,1.4286765]
[1747512696353,0.193793,103160.0,103150.0,1.2486765]
[1747512696652,0.43806068,103170.0,103160.0,0.193793]
[1747512696847,0.40536068,103170.0,103160.0,0.652093]
[1747512697050,0.21158448,103170.0,103160.0,0.96855093]
[1747512697354,0.42304403,103180.0,103170.0,0.1937743]
[1747512697553,0.61679953,103180.0,103170.0,1.22211223]
[1747512697855,0.61679953,103180.0,103170.0,1.25461223]
[1747512698062,0.61679953,103180.0,103170.0,1.0681543]
[1747512698258,0.64949953,103180.0,103170.0,1.0681543]
[1747512698456,0.65249953,103180.0,103170.0,0.6482743]
[1747512698762,0.2294555,103180.0,103170.0,1.0681543]
[1747512699764,0.2324555,103180.0,103170.0,1.0681543]
[1747512700762,0.2324555,103180.0,103170.0,1.10508181]
[1747512703961,0.2324555,103180.0,103170.0,0.68520181]
[1747512705355,0.2324555,103180.0,103170.0,0.6482743]
[1747512707360,0.84401343,103180.0,103170.0,0.2874743]
[1747512707663,0.1937743,103170.0,103160.0,0.32759981]
[1747512707854,0.80463223,103170.0,103160.0,0.37049981]
[1747512708054,0.98463223,103170.0,103160.0,0.40309981]
[1747512709060,1.01573223,103170.0,103160.0,0.40309981]
[1747512709255,1.01773223,103170.0,103160.0,0.40309981]
[1747512709456,0.8312743,103170.0,103160.0,0.40309981]
[1747512709654,1.01773223,103170.0,103160.0,0.40309981]
[1747512709857,1.01873223,103170.0,103160.0,0.40309981]
[1747512711362,1.01873223,103170.0,103160.0,0.3661723]
[1747512711755,0.82495793,103170.0,103150.0,0.37742894]
[1747512711957,0.80555093,103160.0,103150.0,0.68407864]
[1747512712267,0.98555093,103160.0,103150.0,0.47411864]
[1747512713558,0.799093,103160.0,103150.0,0.47411864]
[1747512713763,0.440293,103160.0,103150.0,0.47411864]
[1747512713964,0.441293,103160.0,103150.0,0.47411864]
[1747512714158,0.261293,103160.0,103150.0,0.47411864]
[1747512715656,0.261293,103160.0,103150.0,0.43719113]
[1747512715862,0.292693,103160.0,103150.0,0.43719113]
[1747512716166,0.0342,103160.0,103150.0,1.43356906]
[1747512716970,0.2279927,103160.0,103150.0,1.43356906]
[1747512717469,0.2279927,103160.0,103150.0,1.24711113]
[1747512717672,0.0342,103160.0,103150.0,0.82799113]
[1747512719464,0.227993,103160.0,103150.0,0.82799113]
[1747512720570,0.227993,103160.0,103150.0,0.86491864]
[1747512720769,0.227993,103160.0,103150.0,1.07431864]
[1747512721074,0.227993,103160.0,103150.0,0.86491864]
[1747512723469,0.227993,103160.0,103150.0,1.28323864]
[1747512723672,0.0342,103160.0,103150.0,1.28323864]
[1747512723883,0.003,103160.0,103150.0,1.46969657]
[1747512724181,0.003,103160.0,103150.0,1.64969657]
[1747512724676,0.003,103160.0,103150.0,1.64993657]
[1747512725578,0.001,103160.0,103150.0,1.64993657]
[1747512725775,0.001,103160.0,103150.0,1.65899056]
[1747512726175,0.2734179,103170.0,103160.0,0.193793]
[1747512726378,0.2734179,103170.0,103160.0,0.648493]
[1747512727484,0.2744179,103170.0,103160.0,0.648493]
[1747512727684,0.0342,103170.0,103160.0,0.83495093]
[1747512728482,0.0342,103170.0,103160.0,0.88094754]
[1747512729485,0.0342,103170.0,103160.0,0.69448961]
[1747512729685,0.0342,103170.0,103160.0,0.88094754]
[1747512729894,0.2279743,103170.0,103160.0,0.88094754]
[1747512731083,0.2279743,103170.0,103160.0,0.52014754]
[1747512731299,0.2279743,103170.0,103160.0,0.88094754]
[1747512731692,0.2279743,103170.0,103160.0,0.69448961]
[1747512731893,0.2279743,103170.0,103160.0,0.90376961]
[1747512732297,0.0342,103170.0,103160.0,0.90376961]
[1747512733690,0.2279743,103170.0,103160.0,0.90376961]
[1747512735600,0.41443223,103170.0,103160.0,0.33368961]
[1747512735800,0.47843223,103170.0,103160.0,0.33368961]
[1747512736002,0.47843223,103170.0,103160.0,0.287693]
[1747512736200,0.65843223,103170.0,103160.0,0.287693]
[1747512736592,0.65843223,103170.0,103160.0,0.23072051]
[1747512736793,1.01923223,103170.0,103160.0,0.23072051]
[1747512737599,1.01923223,103170.0,103160.0,0.26212051]
[1747512737993,1.14001271,103170.0,103160.0,0.26212051]
[1747512739804,1.14545487,103170.0,103160.0,0.23072051]
[1747512741004,1.14545487,103170.0,103160.0,0.193793]
[1747512743100,1.14545487,103170.0,103160.0,0.224893]
[1747512743404,0.95899694,103170.0,103160.0,0.224893]
[1747512743599,0.95899694,103170.0,103160.0,0.289593]
[1747512744000,0.95355478,103170.0,103160.0,0.289593]
[1747512744407,0.88955478,103170.0,103160.0,0.289593]
[1747512744598,0.92005478,103170.0,103160.0,0.289593]
[1747512744999,0.92549694,103170.0,103160.0,0.289593]
[1747512745302,0.74549694,103170.0,103160.0,0.289593]
[1747512745907,0.74005478,103170.0,103160.0,0.289593]
[1747512746101,0.77195478,103170.0,103160.0,0.289593]
[1747512746407,0.41115478,103170.0,103160.0,0.289593]
[1747512747007,0.41659694,103170.0,103160.0,0.289593]
[1747512748009,0.41115478,103170.0,103160.0,0.289593]
[1747512749003,0.60305487,103170.0,103160.0,0.289593]
[1747512752109,0.41659694,103170.0,103160.0,0.289593]
[1747512755004,0.41115478,103170.0,103160.0,0.289593]
[1747512755509,0.59761271,103170.0,103160.0,0.193793]
[1747512755712,0.95841271,103170.0,103160.0,0.193793]
[1747512757009,0.193793,103160.0,103150.0,0.47411584]
[1747512757205,0.83475093,103160.0,103150.0,0.47411584]
[1747512758010,0.47395093,103160.0,103150.0,0.47411584]
[1747512758418,0.83475093,103160.0,103150.0,0.47411584]
[1747512759918,0.95553141,103160.0,103150.0,0.47411584]
[1747512760318,0.95753141,103160.0,103150.0,0.47411584]
[1747512760510,0.95853141,103160.0,103150.0,0.47411584]
[1747512761518,0.59773141,103160.0,103150.0,0.47411584]
[1747512763419,0.53365823,103160.0,103150.0,0.47411584]
[1747512770030,0.89445823,103160.0,103150.0,0.47411584]
[1747512770526,0.53365823,103160.0,103150.0,0.47411584]
[1747512770830,0.89445823,103160.0,103150.0,0.47411584]
[1747512771230,0.86275823,103160.0,103150.0,0.42566384]
[1747512771435,0.89285823,103160.0,103150.0,0.42566384]
[1747512771931,1.01524298,103160.0,103150.0,0.07106634]
[1747512772137,1.19524298,103160.0,103150.0,0.23267814]
[1747512772326,1.20068514,103160.0,103150.0,0.23267814]
[1747512773236,1.19524298,103160.0,103150.0,0.23267814]
[1747512773430,1.19524298,103160.0,103150.0,0.03886634]
[1747512773940,1.0744625,103160.0,103150.0,0.03886634]
[1747512774326,1.0744625,103160.0,103150.0,0.23267814]
[1747512775438,1.2826225,103160.0,103150.0,0.23267814]
[1747512776339,1.4915425,103160.0,103150.0,0.23267814]
[1747512777342,1.64260389,103160.0,103150.0,0.23267814]
[1747512777932,1.64260389,103160.0,103150.0,0.19575063]
[1747512778739,1.64260389,103160.0,103150.0,0.00193883]
[1747512779241,1.64260389,103160.0,103150.0,0.19575063]
[1747512779541,1.64260389,103160.0,103150.0,0.00193883]
[1747512780440,1.64260389,103160.0,103150.0,0.00738099]
[1747512780643,1.65237162,103160.0,103150.0,0.00738099]
[1747512781542,1.65237162,103160.0,103150.0,0.00193883]
[1747512784338,1.40760212,103160.0,103150.0,0.00193883]
[1747512784543,1.65237162,103160.0,103150.0,0.00193883]
[1747512785442,2.02237162,103160.0,103150.0,0.00193883]
[1747512785637,2.00237162,103160.0,103150.0,0.00193883]
[1747512786748,1.65237162,103160.0,103150.0,0.00193883]
[1747512790437,1.65237162,103160.0,103150.0,0.03283883]
[1747512790641,1.65237162,103160.0,103150.0,0.03828099]
[1747512792147,1.19948212,103160.0,103150.0,0.03828099]
[1747512792353,1.65361162,103160.0,103150.0,0.03828099]
[1747512792852,1.29281162,103160.0,103150.0,0.03828099]
[1747512793151,2.01441162,103160.0,103150.0,0.03828099]
[1747512793354,2.01441162,103160.0,103150.0,0.06918099]
[1747512793560,1.86335023,103160.0,103150.0,0.06918099]
[1747512795254,1.68335023,103160.0,103150.0,0.06918099]
[1747512800855,1.68335023,103160.0,103150.0,0.10098099]
[1747512802050,1.43858073,103160.0,103150.0,0.10098099]
[1747512802251,1.68335023,103160.0,103150.0,0.10098099]
[1747512804261,1.47399023,103160.0,103150.0,0.29479279]
[1747512804459,1.52021775,103160.0,103150.0,0.29479279]
[1747512804664,1.10277775,103160.0,103150.0,0.29479279]
[1747512804856,1.07207775,103160.0,103150.0,0.29479279]
[1747512805055,0.949693,103160.0,103150.0,0.29479279]
[1747512805363,0.71127775,103160.0,103150.0,0.47479279]
[1747512805966,0.92244038,103160.0,103150.0,0.47479279]
[1747512807469,1.13040038,103160.0,103150.0,0.47479279]
[1747512808168,1.13040038,103160.0,103150.0,0.29479279]
[1747512811468,0.92244038,103160.0,103150.0,0.29479279]
[1747512814472,0.95454038,103160.0,103150.0,0.29479279]
[1747512818875,0.98554038,103160.0,103150.0,0.29479279]
[1747512820175,1.31632513,103160.0,103150.0,0.29479279]
[1747512820375,1.31632513,103160.0,103150.0,0.10098099]
[1747512824476,1.31632513,103160.0,103150.0,0.00738099]
[1747512824880,1.31632513,103160.0,103150.0,0.04068099]
[1747512825574,1.31632513,103160.0,103150.0,0.07238099]
[1747512827974,1.67712513,103160.0,103150.0,0.07238099]
[1747512828184,1.43235563,103160.0,103150.0,0.26619279]
[1747512828378,1.43235563,103160.0,103150.0,0.29879279]
[1747512828580,1.11850323,103160.0,103150.0,0.29879279]
[1747512828773,1.43468098,103160.0,103150.0,0.29879279]
[1747512829275,1.43468098,103160.0,103150.0,0.47879279]
[1747512829680,1.43468098,103160.0,103150.0,0.48848171]
[1747512830582,1.43468098,103160.0,103150.0,0.47879279]
[1747512831582,1.07388098,103160.0,103150.0,0.47879279]
[1747512837987,1.10568098,103160.0,103150.0,0.47879279]
[1747512839789,0.89451835,103160.0,103150.0,0.47879279]
[1747512842392,0.86271835,103160.0,103150.0,0.47879279]
[1747512845896,0.89411835,103160.0,103150.0,0.47879279]
[1747512846099,0.7717336,103160.0,103150.0,0.47879279]
[1747512846300,0.89411835,103160.0,103150.0,0.47879279]
[1747512846899,0.74267775,103160.0,103150.0,0.47879279]
[1747512847302,0.620293,103160.0,103150.0,0.47879279]
[1747512847498,0.74267775,103160.0,103150.0,0.47879279]
[1747512848603,0.8940229,103160.0,103150.0,0.47879279]
[1747512852994,0.9259229,103160.0,103150.0,0.47879279]
[1747512853702,0.8940229,103160.0,103150.0,0.47879279]
[1747512855005,1.01511249,103160.0,103150.0,0.47879279]
[1747512856407,0.98371249,103160.0,103150.0,0.47879279]
[1747512857406,0.62291249,103160.0,103150.0,0.47879279]
[1747512857610,0.98371249,103160.0,103150.0,0.47879279]
[1747512858001,0.62291249,103160.0,103150.0,0.47879279]
[1747512858201,0.5018229,103160.0,103150.0,0.47879279]
[1747512859005,0.8626229,103160.0,103150.0,0.47879279]
[1747512859208,0.5018229,103160.0,103150.0,0.47879279]
[1747512859610,0.34813805,103160.0,103150.0,0.96197754]
[1747512859906,0.15434515,103160.0,103150.0,0.96197754]
[1747512860108,0.21188321,103170.0,103160.0,0.193793]
[1747512860404,0.21188321,103170.0,103160.0,0.8310625]
[1747512860606,0.21188321,103170.0,103160.0,0.92799449]
[1747512860806,0.21188321,103170.0,103160.0,1.01360974]
[1747512861209,0.4347804,103180.0,103170.0,0.1937743]
[1747512861506,0.4347804,103180.0,103170.0,0.5862743]
[1747512862309,0.4347804,103180.0,103170.0,0.7662743]
[1747512862911,0.4377804,103180.0,103170.0,0.7662743]
[1747512863406,0.4377804,103180.0,103170.0,0.8295743]
[1747512863610,0.56316515,103180.0,103170.0,0.8295743]
[1747512864105,1.0463499,103180.0,103170.0,0.4054743]
[1747512864313,1.0463499,103180.0,103170.0,0.2254743]
[1747512864503,0.8015804,103180.0,103170.0,0.2254743]
[1747512864702,1.0463499,103180.0,103170.0,0.2254743]
[1747512865010,1.0463499,103180.0,103170.0,0.0317]
[1747512865213,1.0463499,103180.0,103170.0,0.2254743]
[1747512865403,0.92396515,103180.0,103170.0,0.2254743]
[1747512865803,1.0463499,103180.0,103170.0,0.2254743]
[1747512866098,1.0463499,103180.0,103170.0,0.0317]
[1747512866410,0.1937742,103170.0,103160.0,0.2906657]
[1747512866612,0.34885895,103170.0,103160.0,0.2906657]
[1747512866811,0.37995895,103170.0,103160.0,0.3218657]
[1747512867009,0.74075895,103170.0,103160.0,0.3218657]
[1747512867507,0.74175895,103170.0,103160.0,0.3218657]
[1747512867905,0.74175895,103170.0,103160.0,0.35888258]
[1747512868307,0.74275895,103170.0,103160.0,0.35888258]
[1747512868615,0.74275895,103170.0,103160.0,0.03701688]
[1747512868807,0.74275895,103170.0,103160.0,0.23080988]
[1747512871416,0.77495895,103170.0,103160.0,0.23080988]
[1747512872517,0.6525742,103170.0,103160.0,0.23080988]
[1747512872719,0.77495895,103170.0,103160.0,0.26230988]
[1747512873918,0.77495895,103170.0,103160.0,0.225293]
[1747512875719,0.77495895,103170.0,103160.0,0.23073516]
[1747512876521,0.41415895,103170.0,103160.0,0.23073516]
[1747512876721,0.77495895,103170.0,103160.0,0.23073516]
[1747512878125,0.41415895,103170.0,103160.0,0.23073516]
[1747512878427,0.77495895,103170.0,103160.0,0.23073516]
[1747512880825,0.41415895,103170.0,103160.0,0.23073516]
[1747512881122,0.77495895,103170.0,103160.0,0.23073516]
[1747512887830,0.77495895,103170.0,103160.0,0.03694216]
[1747512888032,0.8973437,103170.0,103160.0,0.00544216]
[1747512888220,0.95495895,103170.0,103160.0,0.00544216]
[1747512889225,0.77495895,103170.0,103160.0,0.00544216]
[1747512890125,1.0773437,103170.0,103160.0,0.00544216]
[1747512892532,1.0873437,103170.0,103160.0,0.00544216]
[1747512894237,0.78495895,103170.0,103160.0,0.00544216]
[1747512894736,1.20083895,103170.0,103160.0,0.00544216]
[1747512895831,1.3232237,103170.0,103160.0,0.00544216]
[1747512897536,1.20083895,103170.0,103160.0,0.00544216]
[1747512900243,0.99291895,103170.0,103160.0,0.00544216]
[1747512900446,1.20083895,103170.0,103160.0,0.00544216]
[1747512900642,1.20083895,103170.0,103160.0,0.03784216]
[1747512900842,0.78495895,103170.0,103160.0,0.03784216]
[1747512901044,0.78495895,103170.0,103160.0,0.23163516]
[1747512901243,0.78495895,103170.0,103160.0,0.41163516]
[1747512901544,1.20083895,103170.0,103160.0,0.41163516]
[1747512902551,0.77495895,103170.0,103160.0,0.41163516]
[1747512902746,0.98287895,103170.0,103160.0,0.47533516]
[1747512904250,0.6525742,103170.0,103160.0,0.47533516]
[1747512904545,0.41415895,103170.0,103160.0,0.47533516]
[1747512904747,0.77495895,103170.0,103160.0,0.47533516]
[1747512904938,0.92589764,103170.0,103160.0,0.47533516]
[1747512905249,0.60973869,103170.0,103160.0,0.44283516]
[1747512905441,0.56509774,103170.0,103160.0,0.47333516]
[1747512905639,0.53289774,103170.0,103160.0,0.47333516]
[1747512905834,0.37781299,103170.0,103160.0,0.47333516]
[1747512907150,0.53209774,103170.0,103160.0,0.47333516]
[1747512910655,0.40971299,103170.0,103160.0,0.47333516]
[1747512910951,0.53209774,103170.0,103160.0,0.47333516]
[1747512915846,0.56489774,103170.0,103160.0,0.47333516]
[1747512918863,0.18403869,103170.0,103160.0,0.47333516]
[1747512919053,0.15293869,103170.0,103160.0,0.59571991]
[1747512919365,0.34671289,103170.0,103160.0,0.95651991]
[1747512920260,0.002,103170.0,103160.0,0.95651991]
[1747512920853,0.1957742,103170.0,103160.0,0.95651991]
[1747512921263,0.002,103170.0,103160.0,0.95651991]
[1747512921447,0.002,103170.0,103160.0,1.00389859]
[1747512922660,0.1957743,103170.0,103160.0,1.00389859]
[1747512923152,0.002,103170.0,103160.0,1.00389859]
[1747512923555,0.002,103170.0,103160.0,1.12628334]
[1747512924558,0.002,103170.0,103160.0,1.00389859]
[1747512924759,0.1957742,103170.0,103160.0,1.00389859]
[1747512925562,0.002,103170.0,103160.0,1.00389859]
[1747512925966,0.1957743,103170.0,103160.0,1.00389859]
[1747512926357,0.002,103170.0,103160.0,1.00389859]
[1747512926557,0.1957743,103170.0,103160.0,1.00389859]
[1747512927063,0.1957743,103170.0,103160.0,1.04091547]
[1747512928066,0.002,103170.0,103160.0,1.04091547]
[1747512928364,0.58373369,103180.0,103170.0,0.1937743]
[1747512928558,0.58373369,103180.0,103170.0,0.2896743]
[1747512929166,0.58373369,103180.0,103170.0,0.4696743]
[1747512929364,0.58673369,103180.0,103170.0,0.4696743]
[1747512929564,0.58973369,103180.0,103170.0,0.4696743]
[1747512929864,0.71211844,103180.0,103170.0,0.4696743]
[1747512930063,0.58973369,103180.0,103170.0,0.4696743]
[1747512930266,0.54129069,103180.0,103170.0,0.4696743]
[1747512932860,0.54129069,103180.0,103170.0,0.51702123]
[1747512933062,0.54129069,103180.0,103170.0,0.52692152]
[1747512933665,0.54129069,103180.0,103170.0,0.64930627]
[1747512933865,0.54129069,103180.0,103170.0,0.52692152]
[1747512934769,0.66367544,103180.0,103170.0,0.52692152]
[1747512935572,0.66367544,103180.0,103170.0,0.53236368]
[1747512936369,0.66367544,103180.0,103170.0,0.50046368]
[1747512936567,0.51273675,103180.0,103170.0,0.45311675]
[1747512938758,0.0997,103180.0,103170.0,0.6071015]
[1747512938960,0.2934554,103180.0,103170.0,0.6071015]
[1747512939169,0.2934554,103180.0,103170.0,0.48471675]
[1747512940257,0.0997,103180.0,103170.0,0.69331675]
[1747512940453,0.2934554,103180.0,103170.0,0.85271838]
[1747512942468,0.2934554,103180.0,103170.0,1.06119838]
[1747512946472,0.0997,103180.0,103170.0,1.42199838]
[1747512946669,0.2934554,103180.0,103170.0,1.42199838]
[1747512946966,0.2934554,103180.0,103170.0,1.3849815]
[1747512947871,0.0997,103180.0,103170.0,1.3849815]
[1747512948568,0.0997,103180.0,103170.0,1.43245857]
[1747512949070,0.006,103180.0,103170.0,1.43245857]
[1747512949464,0.0377,103180.0,103170.0,1.43245857]
[1747512949866,0.0347,103180.0,103170.0,1.43245857]
[1747512950069,0.0327,103180.0,103170.0,1.47782241]
[1747512950273,0.002,103180.0,103170.0,1.60020716]
[1747512950468,0.002,103180.0,103170.0,1.47782241]
[1747512951472,0.001,103180.0,103170.0,1.47782241]
[1747512951669,0.59798921,103190.0,103170.0,1.47882241]
[1747512951874,0.59798921,103190.0,103180.0,0.76893995]
[1747512952170,0.59798921,103190.0,103180.0,0.94893995]
[1747512952871,0.59898921,103190.0,103180.0,0.94893995]
[1747512953266,0.388106,103190.0,103180.0,0.99641702]
[1747512953468,0.388106,103190.0,103180.0,0.84353227]
[1747512953668,0.51049075,103190.0,103180.0,1.02127227]
[1747512953871,0.50949075,103190.0,103180.0,0.81283227]
[1747512954178,0.51049075,103190.0,103180.0,0.63283227]
[1747512954678,0.50949075,103190.0,103180.0,0.63283227]
[1747512954883,0.51049075,103190.0,103180.0,0.5853552]
[1747512955080,0.388106,103190.0,103180.0,0.2245552]
[1747512955372,0.748906,103190.0,103180.0,0.4329152]
[1747512955674,0.87129075,103190.0,103180.0,0.2245552]
[1747512956375,0.1937554,103180.0,103170.0,0.28847788]
[1747512956576,0.8938249,103180.0,103170.0,0.28847788]
[1747512956774,0.77144015,103180.0,103170.0,0.28847788]
[1747512957278,0.95144015,103180.0,103170.0,0.28849398]
[1747512957780,0.95144015,103180.0,103170.0,0.09571968]
[1747512958080,0.95144015,103180.0,103170.0,0.29049398]
[1747512958785,0.95144015,103180.0,103170.0,0.09671968]
[1747512958970,1.0738249,103180.0,103170.0,0.29049388]
[1747512959171,1.0778249,103180.0,103170.0,0.28949388]
[1747512959474,1.0778249,103180.0,103170.0,0.28849388]
[1747512959979,0.95944015,103180.0,103170.0,0.28849388]
[1747512960276,0.95544015,103180.0,103170.0,0.28849388]
[1747512960479,1.0818249,103180.0,103170.0,0.24313004]
[1747512960981,1.0818249,103180.0,103170.0,0.04935584]
[1747512961281,1.2900649,103180.0,103170.0,0.04935584]
[1747512962882,1.9969889,103180.0,103170.0,0.04935584]
[1747512963679,1.9969889,103180.0,103160.0,0.06169481]
[1747512963680,0.1937743,103170.0,103160.0,0.03696252]
[1747512963876,0.94663905,103170.0,103160.0,0.03696252]
[1747512964069,1.12663905,103170.0,103160.0,0.03696252]
[1747512964781,1.12863905,103170.0,103160.0,0.03696252]
[1747512965282,1.13063905,103170.0,103160.0,0.03696252]
[1747512966678,1.33875905,103170.0,103160.0,0.03696252]
[1747512968484,1.33875905,103170.0,103160.0,0.23075552]
[1747512968878,0.92215905,103170.0,103160.0,0.23075552]
[1747512969085,1.33851905,103170.0,103160.0,0.23075552]
[1747512969386,0.92215905,103170.0,103160.0,0.23075552]
[1747512969584,0.92215905,103170.0,103160.0,0.223793]
[1747512969785,0.56135905,103170.0,103160.0,0.223793]
[1747512969978,0.92215905,103170.0,103160.0,0.223793]
[1747512970178,0.38135905,103170.0,103160.0,0.223793]
[1747512970484,0.74215905,103170.0,103160.0,0.223793]
[1747512970983,0.6197743,103170.0,103160.0,0.223793]
[1747512971179,0.6197743,103170.0,103160.0,0.55637775]
[1747512971486,0.426,103170.0,103160.0,0.55637775]
[1747512971677,0.426,103170.0,103160.0,0.6787625]
[1747512971872,0.426,103170.0,103160.0,0.55637775]
[1747512972382,0.0652,103170.0,103160.0,0.91717775]
[1747512972582,0.0347,103170.0,103160.0,0.91717775]
[1747512973273,0.004,103170.0,103160.0,0.91717775]
[1747512973473,0.004,103170.0,103160.0,1.12549775]
[1747512975686,0.1977742,103170.0,103160.0,1.12533775]
[1747512976091,0.004,103170.0,103160.0,1.12533775]
[1747512976992,0.55438045,103180.0,103170.0,0.1937743]
[1747512977189,0.4319957,103180.0,103170.0,0.26191646]
[1747512977490,0.4319957,103180.0,103170.0,0.29221646]
[1747512978302,0.3835527,103180.0,103170.0,0.29221646]
[1747512978591,0.3875527,103180.0,103170.0,0.29221646]
[1747512979096,0.3391106,103180.0,103170.0,0.29221646]
[1747512979292,0.0969,103180.0,103170.0,0.41460121]
[1747512979590,0.2906555,103180.0,103170.0,0.77540121]
[1747512979989,0.2906555,103180.0,103170.0,0.65301646]
[1747512980191,0.2936555,103180.0,103170.0,0.83301646]
[1747512980591,0.2896555,103180.0,103170.0,0.83301646]
[1747512980790,0.2906555,103180.0,103170.0,0.83301646]
[1747512981195,0.41304025,103180.0,103170.0,0.29221646]
[1747512981495,0.41004025,103180.0,103170.0,0.29221646]
[1747512981690,0.41204025,103180.0,103170.0,0.29221646]
[1747512982295,0.41204025,103180.0,103170.0,0.2867743]
[1747512983196,0.77284025,103180.0,103170.0,0.2867743]
[1747512983387,0.41204025,103180.0,103170.0,0.2867743]
[1747512983689,0.77284025,103180.0,103170.0,0.2867743]
[1747512983891,0.77284025,103180.0,103170.0,0.2545743]
[1747512985298,0.895225,103180.0,103170.0,0.2545743]
[1747512985489,0.895225,103180.0,103170.0,0.2240743]
[1747512985689,0.895225,103180.0,103170.0,0.0303]
[1747512985891,0.895225,103180.0,103170.0,0.2240743]
[1747512986187,1.075225,103180.0,103170.0,0.2240743]
[1747512986386,1.075225,103180.0,103160.0,0.32763292]
[1747512986387,0.1937742,103170.0,103160.0,0.32763292]
[1747512986594,0.74035895,103170.0,103160.0,0.35933292]
[1747512986896,0.74035895,103170.0,103160.0,0.31088792]
[1747512987094,0.92035895,103170.0,103160.0,0.31088792]
[1747512987597,0.92035895,103170.0,103160.0,0.26244382]
[1747512988089,0.92035895,103170.0,103160.0,0.26245552]
[1747512988488,0.92035895,103170.0,103160.0,0.06866252]
[1747512988690,0.92035895,103170.0,103160.0,0.26245552]
[1747512988994,1.12847895,103170.0,103160.0,0.23075552]
[1747512989182,1.2508637,103170.0,103160.0,0.03696252]
[1747512989584,1.2528637,103170.0,103160.0,0.03696252]
[1747512989797,0.193793,103160.0,103150.0,0.03890135]
[1747512989987,0.8963625,103160.0,103150.0,0.03890135]
[1747512990183,1.2844425,103160.0,103150.0,0.23271315]
[1747512990390,1.2844425,103160.0,103150.0,0.03890135]
[1747512991097,1.2844425,103160.0,103150.0,0.23271315]
[1747512992098,1.2844425,103160.0,103150.0,0.03890135]
[1747512992297,1.2844425,103160.0,103150.0,0.23271315]
[1747512994202,1.0763625,103160.0,103150.0,0.23271315]
[1747512994384,1.2843225,103160.0,103150.0,0.23271315]